{"text_format":"1","workbook":"xlsx","n_sheets":2,"sheets":["Tillad makroer","Blanket - over 24 timer"],"not_rendered":{"charts":0,"images":0,"macros":1,"external_links":0,"defined_names":0,"comments":0,"pivot_tables":0},"unopened":[],"bounds":{"document_bytes":16777216,"sheet_cells":100000,"rows_first":2000,"rows_last":500,"rows_between":2000,"halvings":0,"cell_chars":16384,"cell_head_chars":4096},"cells_cut":0,"cells_raw":0,"read":"whole","date_system":"1900"}

{"sheet":"Tillad makroer","index":0,"n_rows":1,"n_cols":1,"rows_kept":1,"cut":false,"hidden":false,"merged":[[0,0,0,25]]}
["For at tilgå Rejseafregningsblanketten skal du huske at trykke \"Aktivér indhold\" i den gule fane øverst.\nUdfyld da arket som normalt. Tak!"]

{"sheet":"Blanket - over 24 timer","index":1,"n_rows":43,"n_cols":11,"rows_kept":43,"cut":false,"hidden":true,"merged":[[28,1,28,9],[29,1,29,9],[10,2,10,4],[12,1,12,9],[14,2,14,3],[15,2,15,3],[16,2,16,3],[13,7,13,8],[14,7,14,8],[15,7,15,8],[16,7,16,8],[10,7,10,8],[26,7,26,8],[25,7,25,8],[17,2,17,3],[17,7,17,8],[1,1,1,9],[3,1,3,9],[4,2,4,9],[5,2,5,9],[7,1,7,9],[18,7,18,8],[25,2,25,3],[25,4,25,5],[20,1,20,9],[21,1,21,9],[22,2,22,9],[23,2,23,9],[24,2,24,9],[42,2,42,9],[30,7,30,8],[33,7,33,8],[34,7,34,8],[35,7,35,8],[37,1,37,6],[39,1,39,8],[31,7,31,8],[32,7,32,8],[37,7,37,8]]}
[]
[null,"Rejse- og udlægsafregning for Inspektorer over 24 timer",null,null,null,null,null,null,null,null,"OBS: Alle lyseblå felter bedes udfyldes, før arket kan gemmes."]
[]
[null,"Personoplysninger"]
[null,"Navn:",null,null,null,null,null,null,null,null,{"$f":"IF(TRIM(C5)=\"\", \"⚠️ Udfyld venligst navn i det lyseblå felt til venstre\", \"\")","v":"⚠️ Udfyld venligst navn i det lyseblå felt til venstre"}]
[null,"CPR.nummer:",null,null,null,null,null,null,null,null,{"$f":"IF(TRIM(C6)=\"\", \"⚠️ Udfyld venligst CPR. nr. som 10 tal i rækkefølge i det lyseblå felt til venstre\", \"\")","v":"⚠️ Udfyld venligst CPR. nr. som 10 tal i rækkefølge i det lyseblå felt til venstre"}]
[]
[null,"Rejseoplysninger"]
[null,"Afrejse          (Angives med tal i hver rubrik)","Dag:",null,"Måned:",null,"År:",null,"Tidspunkt:",null,{"$f":"IF(OR(TRIM(D9)=\"\", TRIM(F9)=\"\", TRIM(H9)=\"\", TRIM(J9)=\"\"), \"⚠️ Udfyld venligst de fire lyseblå datofelter til venstre\", \"\")","v":"⚠️ Udfyld venligst de fire lyseblå datofelter til venstre"}]
[null,"Hjemrejse      (Angives med tal i hver rubrik)","Dag:",null,"Måned:",null,"År:",null,"Tidspunkt:",null,{"$f":"IF(OR(TRIM(D10)=\"\", TRIM(F10)=\"\", TRIM(H10)=\"\", TRIM(J10)=\"\"), \"⚠️ Udfyld venligst de fire lyseblå datofelter til venstre\", \"\")","v":"⚠️ Udfyld venligst de fire lyseblå datofelter til venstre"}]
[null,"Rejsens varighed i alt:","Døgn:",null,null,null,{"$f":"INT(J12 - I12)","v":0},"Timer:",null,{"$f":"HOUR((J12 - I12) - INT(J12 - I12)) + ROUND(MINUTE((J12 - I12) - INT(J12 - I12)) / 60, 0)","v":0}]
[null,null,null,null,null,null,null,null,{"$f":"IF(COUNTA(D9,F9,H9,J9)<4, 0, DATE(H9,F9,D9) + TIME(HOUR(J9),MINUTE(J9),0))","v":"00:00:00"},{"$f":"IF(COUNTA(D10,F10,H10,J10)<4, 0, DATE(H10,F10,D10) + TIME(HOUR(J10),MINUTE(J10),0))","v":"00:00:00"}]
[null,"Time/dagpenge og gratis måltider"]
[null,"Time/dagpenge (udregnet via afrejse/hjemrejse dato og tid)",null,null,597,null,null,"I alt kr.",null,{"$f":"SUM(G11*597)+(SUM(J11*24.88))","v":0}]
[null,"Antal Nattillæg (udokumenteret logi sats kr. 255,00):",null,null,null,null,null,"I alt kr.",null,{"$f":"C15*255","v":0},{"$f":"IF(TRIM(C15)=\"\", \"⚠️ Udfyld venligst antal i det lyseblå felt til venstre. Har du ikke haft denne type udlæg, skriv da 0 i feltet.\", \"\")","v":"⚠️ Udfyld venligst antal i det lyseblå felt til venstre. Har du ikke haft denne type udlæg, skriv da 0 i feltet."}]
[null,"Antal gratis morgenmad (sats kr. 89,55):",null,null,null,null,null,"I alt kr.",null,{"$f":"C16*89.55","v":0},{"$f":"IF(TRIM(C16)=\"\", \"⚠️ Udfyld venligst antal i det lyseblå felt til venstre. Har du ikke haft denne type udlæg, skriv da 0 i feltet.\", \"\")","v":"⚠️ Udfyld venligst antal i det lyseblå felt til venstre. Har du ikke haft denne type udlæg, skriv da 0 i feltet."}]
[null,"Antal gratis frokost (sats kr. 179,10):",null,null,null,null,null,"I alt kr.",null,{"$f":"C17*179.1","v":0},{"$f":"IF(TRIM(C17)=\"\", \"⚠️ Udfyld venligst antal i det lyseblå felt til venstre. Har du ikke haft denne type udlæg, skriv da 0 i feltet.\", \"\")","v":"⚠️ Udfyld venligst antal i det lyseblå felt til venstre. Har du ikke haft denne type udlæg, skriv da 0 i feltet."}]
[null,"Antal gratis aftensmad (sats kr. 179,10):",null,null,null,null,null,"I alt kr.",null,{"$f":"C18*179.1","v":0},{"$f":"IF(TRIM(C18)=\"\", \"⚠️ Udfyld venligst antal i det lyseblå felt til venstre. Har du ikke haft denne type udlæg, skriv da 0 i feltet.\", \"\")","v":"⚠️ Udfyld venligst antal i det lyseblå felt til venstre. Har du ikke haft denne type udlæg, skriv da 0 i feltet."}]
[null,"Time/dagpenge i alt:",null,null,null,null,null,"I alt kr.",null,{"$f":"SUM(J14:J15) - SUM(J16:J18)","v":0}]
[]
[null,"Kørsel i egen bil"]
[null,"OBS! Dokumentation med samlet kilometerangivelse skal vedlægges som bilag."]
[null,"Fra - (vejnavn, postnr. og by):",null,null,null,null,null,null,null,null,{"$f":"IF(TRIM(C23)=\"\", \"⚠️ Udfyld venligst adressenavn i det lyseblå felt til venstre. Har du ikke haft kørsel i egen bil, skriv da 0 i feltet.\", \"\")","v":"⚠️ Udfyld venligst adressenavn i det lyseblå felt til venstre. Har du ikke haft kørsel i egen bil, skriv da 0 i feltet."}]
[null,"Til  - (vejnavn, postnr. og by):",null,null,null,null,null,null,null,null,{"$f":"IF(TRIM(C24)=\"\", \"⚠️ Udfyld venligst adressenavn i det lyseblå felt til venstre. Har du ikke haft kørsel i egen bil, skriv da 0 i feltet.\", \"\")","v":"⚠️ Udfyld venligst adressenavn i det lyseblå felt til venstre. Har du ikke haft kørsel i egen bil, skriv da 0 i feltet."}]
[null,"Registreringsnummer:",null,null,null,null,null,null,null,null,{"$f":"IF(TRIM(C25)=\"\", \"⚠️ Udfyld venligst registreringsnummer i det lyseblå felt til venstre. Har du ikke haft kørsel i egen bil, skriv da 0 i feltet.\", \"\")","v":"⚠️ Udfyld venligst registreringsnummer i det lyseblå felt til venstre. Har du ikke haft kørsel i egen bil, skriv da 0 i feltet."}]
[null,"Antal kørte kilometer t/r (sats kr. 2,23)",null,null,null,null,null,"I alt kr.",null,{"$f":"C26*2.23","v":0},{"$f":"IF(TRIM(C26)=\"\", \"⚠️ Udfyld venligst antal i det lyseblå felt til venstre. Har du ikke haft denne type udlæg, skriv da 0 i feltet.\", \"\")","v":"⚠️ Udfyld venligst antal i det lyseblå felt til venstre. Har du ikke haft denne type udlæg, skriv da 0 i feltet."}]
[null,"Kørselsgodtgørelse i alt:",null,null,null,null,null,"I alt kr.",null,{"$f":"SUM(J26)","v":0}]
[]
[null,"Øvrige udgifter"]
[null,"OBS! Alle billetter og kvitteringer skal vedlægges som bilag. Kort/bankkvitteringer er ikke nok."]
[null,"Broafgift, parkering, transport m.m.:",null,null,null,null,null,"I alt kr.",null,null,{"$f":"IF(TRIM(J31)=\"\", \"⚠️ Udfyld venligst beløb i det lyseblå felt til venstre. Har du ikke haft denne type udlæg, skriv da 0 i feltet.\", \"\")","v":"⚠️ Udfyld venligst beløb i det lyseblå felt til venstre. Har du ikke haft denne type udlæg, skriv da 0 i feltet."}]
[null,"Taxa (Hvis beløbet overstiger 500 kr., skal der vedlægges begrundelse herfor)",null,null,null,null,null,"I alt kr.",null,null,{"$f":"IF(TRIM(J32)=\"\", \"⚠️ Udfyld venligst beløb i det lyseblå felt til venstre. Har du ikke haft denne type udlæg, skriv da 0 i feltet.\", \"\")","v":"⚠️ Udfyld venligst beløb i det lyseblå felt til venstre. Har du ikke haft denne type udlæg, skriv da 0 i feltet."}]
[null,"Fly (Kræver, at der vedlægges begrundelse herfor)",null,null,null,null,null,"I alt kr.",null,null,{"$f":"IF(TRIM(J33)=\"\", \"⚠️ Udfyld venligst beløb i det lyseblå felt til venstre. Har du ikke haft denne type udlæg, skriv da 0 i feltet.\", \"\")","v":"⚠️ Udfyld venligst beløb i det lyseblå felt til venstre. Har du ikke haft denne type udlæg, skriv da 0 i feltet."}]
[null,"Hotel ved overnatning:",null,null,null,null,null,"I alt kr.",null,null,{"$f":"IF(TRIM(J34)=\"\", \"⚠️ Udfyld venligst beløb i det lyseblå felt til venstre. Har du ikke haft denne type udlæg, skriv da 0 i feltet.\", \"\")","v":"⚠️ Udfyld venligst beløb i det lyseblå felt til venstre. Har du ikke haft denne type udlæg, skriv da 0 i feltet."}]
[null,"Morgenmad på hotel (pris skal oplyses)",null,null,null,null,null,"I alt kr.",null,null,{"$f":"IF(TRIM(J35)=\"\", \"⚠️ Udfyld venligst beløb i det lyseblå felt til venstre. Har du ikke haft denne type udlæg, skriv da 0 i feltet.\", \"\")","v":"⚠️ Udfyld venligst beløb i det lyseblå felt til venstre. Har du ikke haft denne type udlæg, skriv da 0 i feltet."}]
[null,"Øvrige udgifter i alt:",null,null,null,null,null,"I alt kr.",null,{"$f":"SUM(J31:J35)","v":0}]
[]
[null,"Beløb til udbetaling - bliver udbetalt til NEMkonto",null,null,null,null,null,"I alt kr.",null,{"$f":"SUM(J19+J27+J36)","v":0}]
[]
[null,"Har du husket at vedlægge alle nødvendige bilag?",null,null,null,null,null,null,null,null,{"$f":"IF(TRIM(J40)=\"\", \"⚠️ Indikér at du har husket at tilføje alle bilag ved at skrive 'JA' I feltet.\", \"\")","v":"⚠️ Indikér at du har husket at tilføje alle bilag ved at skrive 'JA' I feltet."}]
[]
[]
[null,"Status på udfyldning af ark:",{"$f":"IF(AND(\nC5<>\"\", C6<>\"\", D9<>\"\", F9<>\"\", H9<>\"\", J9<>\"\",\nD10<>\"\", F10<>\"\", H10<>\"\", J10<>\"\",\nC15<>\"\", C16<>\"\", C17<>\"\", C18<>\"\", C23<>\"\", C24<>\"\", C25<>\"\", C26<>\"\",\nJ31<>\"\", J32<>\"\", J33<>\"\", J34<>\"\", J35<>\"\", J40<>\"\"\n),\n\"✅ Alle nødvendige felter er blevet udfyldt. Arket kan nu blive gemt. Husk at vedlægge dokumentation for udgifter i form af bilag\",\n\"❌ Der er felter, som mangler at blive udfyldt, før at arket kan gemmes.\")","v":"❌ Der er felter, som mangler at blive udfyldt, før at arket kan gemmes."}]